Cogmind - Beta 13 @@@ ROGUE MODE // 2024.07.31 @ 16:53:35 Player: DAFFA Result: Destroyed by G-47 Trooper with Particle Gun Performance ------------- Evolutions (2) 1000 Regions Visited (3) 600 Robots Destroyed (72) 360 Value Destroyed (1820) 1820 Prototype IDs (5) 100 Alien Tech Used (0) 0 Bonus (18) 18 TOTAL SCORE: 3898 Bonus ------- High Alert Combat Kills 18 Cogmind --------- Core Integrity 0/550 Matter 285/300 Energy 100/100 System Corruption 1% Temperature Cool (9) Movement Core (400) Ox7 Location -8/Materials Parts ------- > --- POWER (1) -------- (None) > --- PROPULSION (2) --- (None) > --- UTILITY (6) ------ Medium Storage Unit ECM Suite Medium Insulated Plating Hacking Suite System Shield > --- WEAPON (2) ------- Great Maul > --- INVENTORY (10) --- Light Ion Engine Carbon-fiber Leg Advanced Visual Processing Unit Targeting Computer Authchip [R/Combat] Improved Field Recycling Unit (0) Peak State ------------ > --- POWER ------------ Light Nuclear Core > --- PROPULSION ------- Carbon-fiber Leg Carbon-fiber Leg > --- UTILITY ---------- Medium Storage Unit Advanced Weight Redist. System Improved Sensor Array Transport Network Coupler Hacking Suite System Shield > --- WEAPON ----------- Advanced Beam Cannon Great Maul > --- INVENTORY -------- Advanced Visual Processing Unit Targeting Computer ECM Suite Weapon Shielding Reflective Plating Medium Insulated Plating Authchip [R/Combat] Improved Field Recycling Unit Advanced Beam Cannon Plasma Cutter [Rating: 31] Favorites ----------- Power Ion Engine Engine Ion Engine Power Core Light Nuclear Core Propulsion Aluminum Leg Treads Light Treads Leg Aluminum Leg Wheel Wheel Flight Unit Improved Flight Unit Utility Small Storage Unit Device Weight Redist. System Storage Small Storage Unit Processor Signal Interpreter Hackware System Shield Protection Improved Light Armor Plating Weapon Advanced Beam Cannon Energy Gun Beam Rifle Energy Cannon Advanced Beam Cannon Ballistic Gun Improved Assault Rifle Special Weapon Plasma Cutter Impact Weapon Great Maul Build | -11 -10 -9 -8 ------- Run | Yrd Mat Mat Mat Slots Evolved 4 | . . 2 2 Power . | . . . . Propulsion . | . . . . Utility 4 | . . 2 2 Weapon . | . . . . Parts Attached 74 | 6 18 26 24 Power 9 | 1 2 4 2 Engine 6 | 1 2 3 . Core 3 | . . 1 2 Reactor . | . . . . Propulsion 21 | 2 7 8 4 Treads 4 | . . 2 2 Leg 14 | . 7 5 2 Wheel 2 | 2 . . . Hover . | . . . . Flight 1 | . . 1 . Utility 21 | 1 1 7 12 Device 8 | . . 4 4 Storage 3 | 1 . 1 1 Processor 4 | . 1 2 1 Hackware 2 | . . . 2 Protection 4 | . . . 4 Artifact . | . . . . Weapon 23 | 2 8 7 6 Energy Gun 13 | 2 7 3 1 Energy Cannon 6 | . . 3 3 Ballistic Gun 1 | . . 1 . Ballistic Cannon . | . . . . Launcher . | . . . . Special Weapon 1 | . . . 1 Impact Weapon 2 | . 1 . 1 Slashing Weapon . | . . . . Piercing Weapon . | . . . . Special Melee Weapon . | . . . . Unidentified Prototypes 5 | . . 4 1 Parts Lost 26 | . 2 7 17 Power 2 | . . . 2 Propulsion 8 | . 1 3 4 Utility 9 | . . 2 7 Weapon 7 | . 1 2 4 Highest Loss Streak 8 | . 2 2 8 To Critical Strikes . | . . . . Average Slot Usage (%) 90 | . 85 95 91 Engine 8 | . 14 8 3 Core 1 | . . 2 2 Leg 19 | . 24 20 13 Device 8 | . . 9 14 Storage 11 | . 14 11 9 Processor 14 | . 2 19 19 Hackware 2 | . . . 6 Energy Gun 10 | . 25 6 . Energy Cannon 9 | . . 15 12 Impact Weapon 1 | . 1 . 3 Naked Turns . | . . . . Heaviest Build 30 | 14 16 28 30 Greatest Support 40 | 20 20 40 40 Greatest Overweight (x) 7 | . 4 5 7 Average Overweight (x) . | . . . . Largest Inventory Capacity 10 | 8 8 10 10 Average Capacity 8 | 6 8 8 10 Most Carried 10 | 3 8 9 10 Average Carried 7 | . 4 7 9 Final Capacity 10 | 8 8 10 10 Final Carried 8 | . 8 8 6 Class Distribution -------------------- 68% | Mutant 11% | Skirmisher 7% | Hacker-Mutant 5% | Scavenger-Mutant 4% | Scavenger-Skirmisher Dominant Class ---------------- Mutant | -10/Materials Mutant | -9/Materials Skirmisher | -8/Materials Resources | -11 -10 -9 -8 ----------- Run | Yrd Mat Mat Mat Matter Collected 951 | 198 221 308 224 Remotely . | . . . . Salvage Created 2570 | . 414 980 1176 Parts 150 | . 30 68 52 Haulers Intercepted 8 | . 1 5 2 Recyclers Shooed 4 | . 4 . . Parts Field Recycled . | . . . . Retrieved Matter . | . . . . Parts Self-Destructed . | . . . . Prevented . | . . . . Kills | -11 -10 -9 -8 ------- Run | Yrd Mat Mat Mat Combat Hostiles Destroyed 53 | . 9 21 23 Melee 5 | . . . 5 Guns 16 | . 8 8 . Cannons 24 | . . 12 12 AOE 1 | . . 1 . Classes Destroyed 10 | . 5 2 3 Builder 1 | . . . 1 Hauler 8 | . 1 5 2 Recycler 2 | . . 1 1 Operator 4 | . 2 . 2 Watcher 4 | . 2 1 1 Swarmer 19 | . 3 10 6 Grunt 21 | . 6 7 8 Brawler 1 | . . . 1 Sentry 11 | . . 4 7 Hunter 1 | . . . 1 Best Kill Streak 9 | . 4 9 5 Combat Bots Only 6 | . 3 6 5 Max Kills in Single Turn 2 | . 1 2 1 Gunslinging . | . . . . Exploded 1 | . . 1 . Melee 1 | . . . 1 Uniques/NPCs Destroyed . | . . . . Combat | -11 -10 -9 -8 -------- Run | Yrd Mat Mat Mat Hostile Shots Fired 402 | . 63 107 232 Missed 107 | . 22 26 59 Damage Taken 3698 | . 437 843 2418 Core 794 | . 75 168 551 Absorbed by Shields . | . . . . Redirected to Shielding 52 | . . . 52 Ignored by Resistances 34 | . . . 34 Core Remaining (%) 76 | 100 70 58 . Volleys Fired 214 | . 86 57 71 Largest 2 | . 2 2 2 Hottest 136 | . 101 136 136 Shots Fired 338 | . 127 114 97 Gun 166 | . 127 39 . Cannon 169 | . . 75 94 Launcher . | . . . . Special 3 | . . . 3 Kinetic . | . . . . Thermal 298 | . 107 94 97 Explosive . | . . . . Electromagnetic 40 | . 20 20 . Robot Hit Streak 9 | . 9 7 9 Robot Miss Streak 6 | . 5 6 4 Penetration Max . | . . . . Secondary Targets 2 | . 1 1 . Max Gunslinging Chain 1 | . 1 1 . Shots Hit Robots 205 | . 70 57 78 Core Hits 84 | . 25 33 26 Critical Kills 2 | . . . 2 Critical Parts Destroyed 7 | . . . 7 Critical Strikes 16 | . 6 1 9 Burn 7 | . 6 1 . Meltdown 1 | . . . 1 Smash 8 | . . . 8 Melee Attacks 33 | . . . 33 Impact 33 | . . . 33 Slashing . | . . . . Piercing . | . . . . Sneak Attacks 1 | . . . 1 Combat Hostiles . | . . . . Follow-up Attacks . | . . . . Damage Inflicted 4534 | . 1024 1148 2362 Guns 1306 | . 1024 282 . Cannons 1970 | . . 836 1134 Explosions 30 | . . 30 . Melee 1206 | . . . 1206 Ramming . | . . . . Kinetic . | . . . . Thermal 3092 | . 896 1040 1156 Explosive . | . . . . Electromagnetic 236 | . 128 108 . Impact 1206 | . . . 1206 Slashing . | . . . . Piercing . | . . . . Highest Corruption 1 | . . . 1 Average Corruption 1 | . . . 1 Corruption Purged . | . . . . Corruption Blocked . | . . . . Effects 3 | . . . 3 Message Errors 1 | . . . 1 Matter Fused 1 | . . . 1 Energy Discharges 1 | . . . 1 Overload Shots . | . . . . Overflow Damage 472 | . . 20 452 Projectiles 15 | . . 12 3 Explosions 8 | . . 8 . Melee 449 | . . . 449 Knockbacks 5 | . . . 5 Impact 5 | . . . 5 Kinetic . | . . . . Secondary . | . . . . Self-Inflicted Damage 35 | . . 35 . Shots 1 | . . 1 . Rammed . | . . . . Targets Rammed . | . . . . Kicked . | . . . . Crushed . | . . . . Highest Temperature 532 | . 532 306 445 Average Temperature 108 | . 121 63 134 Received Heat Transfer 1545 | . 225 195 1125 Effects 16 | . 10 . 6 Shutdowns 4 | . 2 . 2 Energy Bleed 2 | . 2 . . Interference 1 | . 1 . . Matter Decay 2 | . 1 . 1 Short Circuit 2 | . . . 2 Damage (major) 5 | . 4 . 1 Siege Activations . | . . . . Robots Corrupted . | . . . . Combat Hostiles . | . . . . Parts Fried 10 | . 1 . 9 Impact Corruptions 19 | . . . 19 Robots Melted 2 | . 1 . 1 Combat Hostiles 2 | . 1 . 1 Parts Melted 12 | . 4 4 4 Heat Transferred 7067 | . 2923 2035 2109 Parts Sabotaged . | . . . . Parts Stolen . | . . . . Parts Stripped . | . . . . Power Chain Reactions 1 | . . 1 . Alert | -11 -10 -9 -8 ------- Run | Yrd Mat Mat Mat Peak Influence 454 | . 141 454 333 Initial 111 | . . 11 111 Average 143 | . 64 241 119 Maximum Alert Level 2 | . . 2 1 Low Security (%) 72 | 100 100 35 83 Level 1 24 | . . 56 16 Level 2 3 | . . 8 . Level 3 . | . . . . Level 4 . | . . . . Level 5 . | . . . . High Security . | . . . . Max Security . | . . . . Squads Dispatched 7 | . 3 2 2 Investigation 1 | . . 1 . Extermination . | . . . . Reinforcement 6 | . 3 1 2 Assault . | . . . . Garrison . | . . . . Intercept . | . . . . Searches Triggered . | . . . . Construction Impeded . | . . . . Haulers Reinforced . | . . . . Active Scanning Responses . | . . . . Cargo Convoy Interrupts . | . . . . Stealth | -11 -10 -9 -8 --------- Run | Yrd Mat Mat Mat Distress Signals 9 | . 1 2 6 Communications Jammed . | . . . . Distress Signals . | . . . . Times Spotted 100 | . 24 39 37 Peak Tracking Total 8 | . 4 6 8 Tactical Retreats 3 | . 1 . 2 Traps | -11 -10 -9 -8 ------- Run | Yrd Mat Mat Mat Traps Triggered 5 | . 2 1 2 Indirectly . | . . . . Trap Hack Attempts . | . . . . Triggered . | . . . . Disarmed . | . . . . Reprogrammed . | . . . . Reused . | . . . . Traps Extracted . | . . . . Installed . | . . . . Triggered . | . . . . Machines | -11 -10 -9 -8 ---------- Run | Yrd Mat Mat Mat Machines Disabled 3 | . 1 2 . Max in Single Turn 1 | . 1 1 . Machines Repaired . | . . . . Machines Dismantled . | . . . . Machines Sabotaged . | . . . . Overloaded Fab Kills . | . . . . Hacking | -11 -10 -9 -8 --------- Run | Yrd Mat Mat Mat Machines Accessed 7 | . 2 4 1 Terminals 6 | . 2 3 1 Fabricators . | . . . . Repair Stations . | . . . . Recycling Units . | . . . . Scanalyzers 1 | . . 1 . Garrison Access . | . . . . Total Hacks 13 | . 3 7 3 Successful 5 | . 3 2 . Failed 8 | . . 5 3 Catastrophic . | . . . . Database Lockouts . | . . . . Manual 5 | . 2 2 1 Terminals 10 | . 3 4 3 Fabricators . | . . . . Repair Stations . | . . . . Recycling Units . | . . . . Scanalyzers 3 | . . 3 . Garrison Access . | . . . . Terminal Hacks 3 | . 3 . . Alert Level 1 | . 1 . . Surveillance Status 1 | . 1 . . Zone Layout 1 | . 1 . . Fabricator Hacks . | . . . . Repair Station Hacks . | . . . . Recycling Unit Hacks . | . . . . Scanalyzer 2 | . . 2 . Insert Component 1 | . . 1 . Analyze 1 | . . 1 . Garrison Access Hacks . | . . . . Unauthorized Hacks . | . . . . Terminals . | . . . . Fabricators . | . . . . Repair Stations . | . . . . Recycling Units . | . . . . Scanalyzers . | . . . . Garrison Access . | . . . . Data Cores Recovered 1 | . . . 1 Used . | . . . . Hacking Detections 4 | . . 3 1 Full Trace Events . | . . . . Feedback Events . | . . . . Feedback Blocked . | . . . . Robot Schematics Acquired . | . . . . Robots Built . | . . . . Authchips . | . . . . Time . | . . . . Total Robot Build Rating . | . . . . Part Schematics Acquired 1 | . . 1 . Parts Built . | . . . . Authchips . | . . . . Time . | . . . . Total Part Build Rating . | . . . . Parts Repaired . | . . . . Time . | . . . . Parts Recycled . | . . . . Recycled Matter . | . . . . Retrieved Matter . | . . . . Retrieved Components . | . . . . Parts Scanalyzed 1 | . . 1 . Part Schematics Acquired 1 | . . 1 . Parts Damaged . | . . . . Bothacking | -11 -10 -9 -8 ------------ Run | Yrd Mat Mat Mat Used RIF Installer . | . . . . Robots Hacked . | . . . . Non-combat . | . . . . Combat . | . . . . Robot Hacks Applied . | . . . . Relay Couplers Released . | . . . . Fabnet Peak Effective % . | . . . . Robots Rewired . | . . . . Allies Hacked . | . . . . Hacks Repelled . | . . . . Allies | -11 -10 -9 -8 -------- Run | Yrd Mat Mat Mat Total Allies . | . . . . Largest Group . | . . . . Highest-Rated Group . | . . . . Highest-Rated Ally . | . . . . Total Orders . | . . . . Ally Attacks . | . . . . Total Damage . | . . . . Kills . | . . . . Allies Corrupted . | . . . . Allies Melted . | . . . . Intel | -11 -10 -9 -8 ------- Run | Yrd Mat Mat Mat Robot Analysis Total . | . . . . Derelict Logs Recovered . | . . . . Drone Launches . | . . . . Drone Recoveries . | . . . . Exploration | -11 -10 -9 -8 ------------- Run | Yrd Mat Mat Mat Turns Passed 3899 | 41 1230 1365 1263 Spaces Moved 2036 | 38 756 784 458 Core 11 | 5 2 1 3 Treads 69 | . . 22 47 Legs 1843 | . 674 761 408 Wheels 113 | 33 80 . . Hover . | . . . . Flight . | . . . . Fastest Speed 50 | 50 80 120 120 Average Speed 126 | 76 116 134 133 Slowest Speed 400 | 80 250 300 400 Overloaded Moves . | . . . . Propulsion Burnouts . | . . . . Robots Hopped . | . . . . Cave-ins Triggered . | . . . . Exploration Rate (%) 46 | 4 89 58 36 Regions Visited 3 Branch Regions . Pre-discovered Areas . | . . . . Known Exits Taken 2 | . 1 1 . Unknown Exits Taken 1 | 1 . . . Scrap Searched . | . . . . Spaces Dug . | . . . . Terrain Destroyed 2 | . . 2 . Melee . | . . . . Projectile . | . . . . AOE 2 | . . 2 . Terrain Rammed . | . . . . Walls Destroyed . | . . . . Machines Disabled . | . . . . Actions | -11 -10 -9 -8 --------- Run | Yrd Mat Mat Mat Total 2951 | 49 973 983 946 Wait 502 | . 92 78 332 Move 2033 | 37 755 783 458 Hop . | . . . . Pick Up 61 | 6 16 22 17 Fast Attach 14 | . 6 4 4 Attach 26 | 6 2 5 13 Detach . | . . . . Swap 34 | . 10 17 7 Drop 34 | . 6 17 11 Fire 214 | . 86 57 71 Melee 33 | . . . 33 Ram . | . . . . Kick . | . . . . Crush . | . . . . Escape Stasis . | . . . . Rewire . | . . . . Trap . | . . . . Miscellaneous . | . . . . Route ------- -11/Scrapyard -10/Materials (discovered 4 exits: *Mat x3 / [*Min]) -9/Materials (discovered 2 exits: *Mat / [*Min]) -8/Materials History --------- Turn | Location | Event 30 | -11/Scrapyard | Discovered new exit (range 15) 42 | -11/Scrapyard | Entered Materials 67 | -10/Materials | Discovered new exit (range 7) 310 | -10/Materials | Build established: Mutant 315 | -10/Materials | Discovered new exit (range 16) 865 | -10/Materials | Discovered new exit (range 14) 1171 | -10/Materials | Discovered new exit (range 16) 1227 | -10/Materials | Identified exit to Materials 1272 | -10/Materials | Entered another Materials area 1272 | -9/Materials | Evolved 2 slots: Utility x2 1850 | -9/Materials | Discovered new exit (range 14) 2007 | -9/Materials | Discovered new exit (range 6) 2635 | -9/Materials | Identified exit to Materials 2637 | -9/Materials | Entered another Materials area 2637 | -8/Materials | Evolved 2 slots: Utility x2 3215 | -8/Materials | Build established: Skirmisher 3419 | -8/Materials | Lost 4 parts (1p1n1u1w) 3805 | -8/Materials | Core integrity fell below 50% 3879 | -8/Materials | Core integrity fell below 20% 3900 | -8/Materials | Destroyed by G-47 Trooper with Particle Gun Last Messages --------------- 03888_ G-47 Trooper system terminally corrupted. 03890_ K-01 Serf collects debris. 03892_ Critical hit (Burn: +37). 03893_ K-01 Serf collects debris. 03894_ Destroyed Imp. Hover Unit. 03894_ Destroyed Imp. Signal Interpreter. 03894_ W-25 Informer system corrupted by crushing effect. 03895_ W-25 Informer system terminally corrupted. 03896_ K-01 Serf collects debris. 03897_ G-47 Trooper suffers critical hit (Smash). 03897_ Destroyed Particle Gun. 03897_ Destroyed Lgt. Nuclear Core. 03897_ G-47 Trooper system corrupted by crushing effect. 03898_ G-47 Trooper system terminally corrupted. 03898_ K-01 Serf collects debris. 03898_ Weapon Shielding destroyed. Map ----- +----------------------------------------------------+ | ???????????# * # #????????????????????????????? | | ???????????######## #????????????????????????????? | | ??????????????????# #????????????????????????????? | | ??????????????????# #????????????????????????????? | | ??????????????????# #????????????????????????????? | | ??????????????????# #????????????????????????????? | | ??????????????????# #????????????????????????????? | | ??????????????????# #????????????????????????????? | | ???????############ ######+##????????????????????? | | ???????# # ######???????????????? | | ???????# ! ! !/# ?????????????? | | ???????# ]! # ###??????????????????? | | ???????# !! """ + ########????????????????????? | | ???????# """ # #???????????????????????????? | | ???????#[ """ # #???????????????????????????? | | ???????# #% #???????????????????????????? | | ???????# = # #???????????????????????????? | | ???????########### %#???????????" #?????????????? | | ?????????#![[ # #??????????"" ??????????????? | | ?????????#![[ [ + ##????????"""???????????????? | | ####?????#[[[ # T#??????? ????????????????? | | #?????######??# % ##?????##+###???????????????? | | T #??##### ##???# %%####### k ########????????? | | #??# ^ #####% g ???????? | | #??#^ + kk%*%g u ???????? | | "" #??# "" #####% %% u@r % ???????? | | "" #??#^ T" #???# ###/###! ###?????????????? | | "" #??# #???# ## ???####???????????????? | | #??# #???# ## #?????????????????????? | | ##########/####### ## #?????????????????????? | | ##= #?????????????????????? | | % % ## !#?????????????????????? | | % ## #?????????????????????? | | ##########/############ #?????????????????????? | | #??????? ?????????# "?????????????????????? | | ######## ????????# #?????????????????????? | | # ## """#???????######?????????????????????? | | # # """#??????????????????????????????????? | | # # """#??????????????????????????????????? | | # # #??????????????????????????????????? | | + #######???????????????????????????????????? | | # #?????????????????????????????????????????? | | ########????##???????????????????????????????????? | | ####### ??????????????????????????????????? | | / #????????????????????????????????????? | | ??????????????????????????????????? | | #????????????????????????????????????? | | ####### #????????????????????????????????????? | | ?????????+###????????????????????????????????????? | | ?????????????????????????????????????????????????? | +----------------------------------------------------+ Best States ------------- Heat Dissipation 50 Energy Generation 14 Energy Capacity 280 Matter Stores 300 Matter Capacity 300 Sight Range 16 Robot Scan Range 15 Terrain Scan Range 14 Terrain Scan Density 10 ECM Strength 1 Additional Mass Support 9 Armor Coverage 225 Resistance: TH 10 Resistance: EM 20 Weapon Shielding 33 Evasion (%) 55 Targeting Accuracy 6 Recoil Reduction 2 Offensive Hacking 10 Defensive Hacking 10 Authchip Count 1 Item Schematics ----------------- Adv. Beam Cannon | -9/Materials | Scanalyzed Robot Schematics ------------------ None Fabricated ------------ Nothing Alien Tech Used ----------------- None Achievements -------------- None Challenges ------------ None Game ------ Seed LightMasterWell Manual? 0 Play Time 00:47:20 Cumulative 10.7 hours Start 2024.07.30 @ 21:20:34 End 2024.07.31 @ 16:53:35 Sessions 1 Manual Loads 0 Difficulty Rogue Special Mode None Game No. 18 Rogue 14 Adventurer 4 Explorer 0 Win Type - Total 0 Types 0/0/0/0/0/0/0/0/0 Lore% 3 Gallery% 16 Achievement% 13 Wizard Run 0 Options --------- Layout 1 ASCII 0 Keyboard 0 Movement Mouse Keybinds 0 Fullscreen 2 Font 24/Smallcaps Map View 50x35 Zoom Use 0% Tactical HUD 1 Map Filters NONE Filters NONE Steam 1 RUN: 2225826c-0613-43bf-8a50-fe008377865b